bitfinex/quotes_ETHUSD_20240716
["timestamp","ask_amount","ask_price","bid_price","bid_amount"]
[1721113600910,20.0,3410.6,3410.2,3.0]
[1721113601515,20.0,3410.6,3410.4,2.93218]
[1721113601758,20.0,3410.6,3410.2,3.0]
[1721113601759,20.0,3410.6,3410.5,6.525338]
[1721113601899,20.0,3410.6,3410.5,4.075338]
[1721113602096,20.0,3410.6,3410.5,7.075338]
[1721113603438,20.0,3410.6,3410.5,10.007458]
[1721113604301,20.0,3410.6,3410.5,7.075338]
[1721113604508,20.0,3410.6,3410.5,6.525338]
[1721113605141,20.0,3410.6,3410.5,9.457458]
[1721113605657,20.0,3410.6,3410.5,10.007458]
[1721113611952,20.0,3410.6,3410.5,3.593218]
[1721113612151,20.0,3410.6,3410.1,2.93245]
[1721113612373,20.0,3410.6,3410.2,5.93235]
[1721113613134,20.0,3410.6,3410.3,2.93228]
[1721113614926,20.0,3410.6,3410.4,3.0]
[1721113616065,20.0,3410.6,3410.5,6.41424]
[1721113616236,20.0,3410.6,3410.5,10.659164]
[1721113618058,20.0,3410.6,3410.5,4.794924]
[1721113618254,20.0,3410.6,3410.5,1.794924]
[1721113618479,20.0,3410.6,3410.5,1.244924]
[1721113618689,20.0,3410.6,3410.5,4.177044]
[1721113618891,20.0,3410.6,3410.5,4.244924]
[1721113619840,20.0,3410.6,3410.5,7.177044]
[1721113620338,20.0,3410.6,3410.5,4.244924]
[1721113620540,2.2604,3410.5,3409.5,0.886594]
[1721113620751,2.2604,3410.5,3409.5,3.819564]
[1721113620954,2.2604,3410.5,3409.8,2.93271]
[1721113621677,2.2604,3410.5,3409.7,2.93278]
[1721113621990,2.2604,3410.5,3409.8,2.93269]
[1721113622354,2.2604,3410.5,3409.0,3.035]
[1721113622558,2.2604,3410.5,3409.4,2.93306]
[1721113622754,2.2604,3410.5,3409.5,3.0]
[1721113622960,2.2604,3410.5,3409.2,2.93319]
[1721113622961,2.2604,3410.5,3409.1,2.93331]
[1721113623290,2.4865,3410.4,3409.1,2.93331]
[1721113623491,2.4865,3410.1,3408.7,2.93365]
[1721113623653,9.8065,3410.1,3408.9,2.93348]
[1721113624260,10.41175795,3410.1,3408.9,2.93348]
[1721113624772,9.8065,3410.1,3408.9,2.93348]
[1721113625174,10.41175795,3410.1,3409.0,2.93341]
[1721113625594,9.8065,3410.1,3409.0,2.93341]
[1721113625903,9.8065,3410.1,3409.0,3.5494455]
[1721113626102,9.8065,3410.1,3409.1,3.0]
[1721113626992,9.8065,3410.1,3409.1,2.95]
[1721113627356,2.4598,3410.0,3409.1,2.95]
[1721113627601,2.4598,3410.0,3408.1,3.035]
[1721113627602,2.4598,3409.7,3408.4,2.93391]
[1721113627756,2.4598,3409.7,3408.5,2.93384]
[1721113627954,2.4598,3409.7,3408.1,3.035]
[1721113628155,2.4598,3409.7,3408.8,2.93352]
[1721113628385,2.4598,3409.7,3408.3,2.93401]
[1721113628756,2.4598,3409.7,3408.5,2.93383]
[1721113628992,2.4598,3409.7,3408.6,3.0]
[1721113629198,2.4598,3409.7,3408.7,2.93365]
[1721113629352,2.4598,3409.7,3408.8,3.0]
[1721113630783,2.4598,3409.7,3408.8,5.93356]
[1721113630988,2.4598,3409.7,3409.0,2.93338]
[1721113631213,2.4598,3409.7,3409.1,3.0]
[1721113631493,2.4598,3409.7,3409.0,3.0]
[1721113632799,2.4598,3409.7,3408.8,5.93356]
[1721113633003,2.4598,3409.7,3408.8,3.0]
[1721113633296,2.4598,3409.7,3408.9,2.93347]
[1721113633497,2.4598,3409.7,3409.0,3.0]
[1721113633656,2.4598,3409.7,3409.0,2.93338]
[1721113633857,2.4598,3409.7,3409.1,5.9333]
[1721113634061,2.4598,3409.7,3409.2,0.29674028]
[1721113634517,2.4598,3409.7,3409.2,3.22989028]
[1721113634668,2.4598,3409.7,3409.3,2.93308]
[1721113634862,2.4598,3409.7,3409.4,2.93305]
[1721113635289,2.4598,3409.7,3409.5,3.0]
[1721113635463,2.4598,3409.7,3409.5,3.62297903]
[1721113635659,2.4598,3409.7,3409.6,2.93289]
[1721113635861,2.4598,3409.7,3409.6,5.93289]
[1721113636366,7.32,3410.1,3409.6,5.93289]
[1721113636564,7.32,3410.5,3410.1,2.93246]
[1721113636775,20.0,3410.6,3410.2,5.93237]
[1721113637684,20.0,3410.6,3410.3,2.93222]
[1721113638279,20.0,3410.6,3410.4,2.93218]
[1721113638476,20.0,3410.6,3410.5,8.86424]
[1721113640212,20.0,3410.6,3410.5,5.93212]
[1721113640593,20.0,3410.6,3410.5,6.818552]
[1721113642516,20.0,3410.6,3410.5,3.0]
[1721113642716,20.0,3410.6,3410.4,3.0]
[1721113642917,20.0,3410.6,3409.9,2.93257]
[1721113643124,20.0,3410.6,3410.0,3.0]
[1721113643716,2.4908,3410.5,3410.0,3.0]
[1721113643917,2.4908,3410.5,3409.9,3.0]
[1721113644621,2.4908,3410.5,3409.9,5.93263]
[1721113644996,2.4908,3410.5,3409.9,8.86526]
[1721113645211,2.4908,3410.5,3409.9,5.93263]
[1721113645389,2.4908,3410.5,3409.9,3.0]
[1721113646049,2.4908,3410.5,3409.9,5.93262]
[1721113646541,2.4908,3410.5,3409.9,6.819169]
[1721113646738,2.4908,3410.5,3410.0,2.93253]
[1721113647031,2.4908,3410.5,3410.1,3.0]
[1721113649113,2.4908,3410.5,3410.1,5.93242]
[1721113649398,2.4908,3410.5,3410.1,3.0]
[1721113650741,2.4908,3410.5,3409.9,6.819169]
[1721113651032,2.4908,3410.5,3410.0,2.93253]
[1721113651233,2.4908,3410.5,3410.1,3.0]
[1721113652436,2.4908,3410.5,3410.1,5.93246]
[1721113653307,2.4908,3410.5,3410.3,2.93227]
[1721113653647,2.4908,3410.5,3410.4,3.0]
[1721113653937,2.4908,3410.5,3410.1,3.0]
[1721113654149,2.4908,3410.5,3410.1,3.886523]
[1721113654296,2.4908,3410.5,3410.1,6.818973]
[1721113654722,20.0,3410.6,3410.2,2.93229]
[1721113655267,20.0,3410.6,3410.5,2.93212]
[1721113655536,20.0,3410.6,3410.5,5.93212]
[1721113656343,20.0,3410.6,3410.5,3.0]
[1721113656650,20.0,3410.6,3410.3,3.0]
[1721113656798,20.0,3410.6,3410.5,2.93212]
[1721113657003,20.0,3410.6,3410.5,5.93212]
[1721113657802,20.0,3410.6,3410.5,8.86424]
[1721113658048,20.0,3410.6,3410.5,3.0]
[1721113658205,20.0,3410.6,3409.7,4.798]
[1721113658206,20.0,3410.6,3410.3,2.93221]
[1721113658535,20.0,3410.6,3410.4,6.518636]
[1721113658839,20.0,3410.6,3410.2,3.0]
[1721113659002,20.0,3410.6,3410.3,2.93221]
[1721113659326,20.0,3410.6,3410.4,3.0]
[1721113659526,20.0,3410.6,3410.4,5.93219]
[1721113660850,20.0,3410.6,3410.5,2.93212]
[1721113661007,20.0,3410.6,3410.5,6.525332]
[1721113662040,20.0,3410.6,3410.5,3.593212]
[1721113662240,20.0,3410.6,3410.4,5.93219]
[1721113663178,20.0,3410.6,3410.5,2.93212]
[1721113663443,20.0,3410.6,3410.5,5.93212]
[1721113664000,20.0,3410.6,3410.5,8.86424]
[1721113665143,20.0,3410.6,3410.5,11.89924]
[1721113665447,20.0,3410.6,3410.5,10.897389]
[1721113666547,20.0,3410.6,3410.5,7.415269]
[1721113667906,20.0,3410.6,3410.5,10.347389]
[1721113668113,20.0,3410.6,3410.5,7.415269]
[1721113668313,20.0,3410.6,3410.5,8.86424]
[1721113669019,20.0,3410.6,3410.5,5.93212]
[1721113669256,20.0,3410.6,3410.5,8.86424]
[1721113670772,20.0,3410.6,3410.5,5.93212]
[1721113670969,20.0,3410.6,3410.5,8.86424]
[1721113671126,20.0,3410.6,3410.5,6.818544]
[1721113672175,20.0,3410.6,3410.5,9.750664]
[1721113672980,20.0,3410.6,3410.5,6.818544]
[1721113673154,20.0,3410.6,3410.5,9.750664]
[1721113676464,20.0,3410.6,3410.5,6.818544]
[1721113676633,20.0,3410.6,3410.5,9.750664]
[1721113677062,20.0,3410.6,3410.5,6.818544]
[1721113677237,20.0,3410.6,3410.5,9.750664]
[1721113679474,20.0,3410.6,3410.5,6.818544]
[1721113679849,20.0,3410.6,3410.5,9.750664]
[1721113680392,20.0,3410.6,3410.5,3.0]
[1721113680899,20.0,3410.6,3410.1,2.93245]
[1721113680900,22.3308,3410.6,3409.9,2.93262]
[1721113681181,22.3308,3410.6,3410.0,2.93253]
[1721113681702,22.3308,3410.6,3410.2,2.93237]
[1721113681842,20.0,3410.6,3409.8,1.52973177]
[1721113682179,20.0,3410.6,3410.5,2.93212]
[1721113682387,20.0,3410.6,3410.2,2.93233]
[1721113682690,20.0,3410.6,3410.3,3.0]
[1721113682871,20.0,3410.6,3410.0,2.93254]
[1721113683058,2.3999,3410.5,3410.1,3.0]
[1721113683782,20.0,3410.6,3410.3,2.93226]
[1721113683950,20.0,3410.6,3410.4,3.0]
[1721113684142,20.0,3410.6,3410.5,2.93212]
[1721113684377,20.0,3410.6,3410.5,5.93212]
[1721113684925,20.0,3410.6,3410.5,3.0]
[1721113685209,20.0,3410.6,3410.5,2.93212]
[1721113685522,20.0,3410.6,3410.5,6.51856]
[1721113685664,20.0,3410.6,3410.5,5.93212]
[1721113686623,20.0,3410.6,3410.5,6.95176823]
[1721113686783,20.0,3410.6,3410.5,9.88392686]
[1721113686975,20.0,3410.6,3410.5,11.41340086]
[1721113687189,20.0,3410.6,3410.5,11.96340086]
[1721113687388,20.0,3410.6,3410.5,13.78255231]
[1721113687608,20.0,3410.6,3410.5,12.25307831]
[1721113687883,20.0,3410.6,3410.5,16.81755231]
[1721113688082,20.0,3410.6,3410.5,13.78243453]
[1721113688321,20.0,3410.6,3410.5,11.41328308]
[1721113689330,20.0,3410.6,3410.5,11.96328308]
[1721113689633,20.0,3410.6,3410.5,12.57643255]
[1721113689808,20.0,3410.6,3410.5,11.96328308]
[1721113690232,20.0,3410.6,3410.5,14.89540308]
[1721113690408,20.0,3410.6,3410.5,17.62090923]
[1721113690735,20.0,3410.6,3410.5,14.68878923]
[1721113690927,20.0,3410.6,3410.5,14.69054507]
[1721113691136,20.0,3410.6,3410.5,17.62266507]
[1721113691645,20.0,3410.6,3410.5,17.00756411]
[1721113691803,20.0,3410.6,3410.5,17.62266507]
[1721113692202,19.38830556,3410.6,3410.5,20.96521555]
[1721113692605,19.38830556,3410.6,3410.5,20.04256411]
[1721113692824,12.00799905,3410.6,3410.5,22.36476411]
[1721113693024,10.92057879,3410.6,3410.5,34.10269174]
[1721113693226,10.92057879,3410.6,3410.5,30.88657305]
[1721113693416,10.92057879,3410.6,3410.5,34.46441912]
[1721113693728,10.92057879,3410.6,3410.5,37.39561876]
[1721113693900,10.92057879,3410.6,3410.5,35.35515973]
[1721113694116,20.0,3411.0,3410.9,16.87398]
[1721113694414,20.0,3411.0,3410.9,27.46690271]
[1721113694819,20.0,3411.0,3410.9,27.84186427]
[1721113695359,20.0,3411.0,3410.9,30.77363427]
[1721113695533,20.0,3411.0,3410.9,32.27363427]
[1721113695901,20.0,3411.0,3410.9,33.81029582]
[1721113696084,18.53415,3411.0,3410.9,33.77363427]
[1721113696361,2.18575,3411.0,3410.9,36.59836264]
[1721113696563,0.55514076,3411.0,3410.9,39.01349819]
[1721113696735,7.6e-07,3411.0,3410.9,36.62869558]
[1721113696944,7.6e-07,3411.0,3410.9,38.09784109]
[1721113697126,7.6e-07,3411.0,3410.9,37.52199342]
[1721113697322,7.6e-07,3411.0,3410.9,36.47410922]
[1721113697560,7.6e-07,3411.0,3410.9,36.63716849]
[1721113697876,7.6e-07,3411.0,3410.9,36.28630454]
[1721113698040,7.6e-07,3411.0,3410.9,37.78630454]
[1721113698230,7.6e-07,3411.0,3410.9,36.59773845]
[1721113698431,0.60468756,3413.8,3412.7,2.93019]
[1721113698653,2.3748,3413.7,3413.3,2.92971]
[1721113698863,2.3748,3413.7,3413.4,2.92961]
[1721113699022,2.3748,3413.7,3413.5,2.92952]
[1721113699369,2.3748,3413.7,3413.6,2.92945]
[1721113699564,2.3748,3413.7,3413.6,5.92945]
[1721113699734,2.3748,3413.7,3413.6,3.0]
[1721113700048,2.3748,3413.7,3413.6,2.92945]
[1721113700254,2.3748,3413.7,3413.6,5.92945]
[1721113700425,2.3748,3413.7,3413.6,3.0]
[1721113700624,2.3748,3413.7,3413.5,2.92952]
[1721113700828,2.3748,3413.7,3413.6,5.92945]
[1721113701061,7.32,3414.1,3413.9,2.9292]
[1721113701268,2.4728,3414.2,3414.0,2.92911]
[1721113701477,2.4728,3414.2,3413.9,2.9292]
[1721113701478,2.4728,3414.2,3414.1,2.92902]
[1721113701629,2.4728,3414.2,3414.1,5.92902]
[1721113702058,7.32,3414.6,3414.1,5.92902]
[1721113702059,7.32,3414.6,3414.1,3.94439764]
[1721113702256,7.32,3414.6,3414.4,2.92876]
[1721113702465,7.32,3414.6,3414.5,3.0]
[1721113702771,2.3185,3414.9,3414.7,2.92848]
[1721113703337,2.3185,3414.9,3414.6,2.92858]
[1721113703540,2.3185,3414.9,3414.7,3.0]
[1721113703877,0.23185,3414.8,3414.3,2.92878]
[1721113704034,0.23185,3414.8,3414.4,3.0]
[1721113704574,0.23185,3414.8,3414.4,2.92876]
[1721113704742,2.3185,3414.9,3414.5,3.0]
[1721113704925,2.3185,3414.9,3414.4,2.92876]
[1721113705131,2.3185,3414.9,3414.7,2.92849]
[1721113705362,2.3185,3414.9,3414.8,5.92842]
[1721113705571,2.4207,3415.4,3414.9,2.92832]
[1721113705755,2.4207,3415.4,3415.1,2.92808]
[1721113706130,2.4207,3415.4,3415.2,2.92807]
[1721113706327,2.4207,3415.4,3415.3,3.0]
[1721113706567,2.4207,3415.4,3415.3,5.928]
[1721113706767,2.4207,3415.4,3415.3,3.0]
[1721113707570,2.4207,3415.4,3415.3,5.928]
[1721113707774,7.32,3415.5,3415.4,2.92791]
[1721113708079,5.3439,3415.9,3415.5,2.92781]
[1721113708235,7.84727786,3415.9,3415.6,3.0]
[1721113708428,7.84727786,3415.9,3414.5,2.92862]
[1721113708670,7.84727786,3415.9,3415.0,2.92819]
[1721113708857,7.84727786,3415.9,3415.3,2.928]
[1721113709038,5.3439,3415.9,3415.4,3.0]
[1721113709233,2.3089,3415.9,3415.5,2.9278]
[1721113709470,2.3089,3415.9,3415.6,5.92774]
[1721113709670,2.3089,3415.9,3415.8,2.92757]
[1721113709846,2.3089,3415.9,3415.8,3.0]
[1721113710049,2.3089,3415.9,3415.7,3.0]
[1721113710252,2.3089,3415.9,3415.5,2.92776]
[1721113710435,2.3089,3415.9,3415.6,3.0]
[1721113711944,2.3089,3415.9,3415.6,5.92772]
[1721113712175,7.3898786,3416.1,3415.8,2.9275]
[1721113712337,7.3898786,3416.1,3415.9,3.0]
[1721113712971,0.0698786,3416.1,3416.0,2.9274]
[1721113713748,0.0698786,3416.1,3416.0,5.9274]
[1721113714983,0.0698786,3416.1,3416.0,6.4774]
[1721113715484,0.0698786,3416.1,3416.0,10.05254]
[1721113718470,0.0698786,3416.1,3416.0,14.74294]
[1721113718880,0.0698786,3416.1,3416.0,11.81554]
[1721113719064,0.0698786,3416.1,3416.0,10.05254]
[1721113719401,5.4425786,3416.1,3415.0,2.92825]
[1721113719696,5.4425786,3416.1,3415.4,2.92788]
[1721113719985,2.4075786,3416.1,3415.4,2.92788]
[1721113720198,2.4075786,3416.1,3415.3,2.92797]
[1721113720413,2.4075786,3416.1,3415.8,2.92752]
[1721113720991,2.4075786,3416.1,3415.9,3.0]
[1721113721690,2.4075786,3416.1,3415.6,2.92773]
[1721113721900,2.4075786,3416.1,3415.7,3.0]
[1721113722273,2.4075786,3416.1,3414.3,2.9288]
[1721113722486,5.4425786,3416.1,3414.9,2.92832]
[1721113722809,5.4425786,3416.1,3415.1,2.92814]
[1721113723016,5.4425786,3416.1,3415.2,2.92807]
[1721113723226,5.4425786,3416.1,3415.0,2.92822]
[1721113723371,5.4425786,3416.1,3414.9,2.92833]
[1721113723578,3.035,3415.7,3414.4,0.85357]
[1721113723808,3.035,3415.7,3414.6,2.9286]
[1721113724008,3.035,3415.7,3414.4,3.78229]
[1721113724211,2.335,3415.2,3413.7,3.84868194]
[1721113724412,2.335,3415.2,3413.7,0.91938194]
[1721113724413,3.035,3414.9,3413.7,0.91938194]
[1721113724919,3.035,3414.9,3413.9,2.92917]
[1721113725078,3.035,3414.9,3414.0,2.9291]
[1721113725420,9.655,3415.2,3414.2,2.92889]
[1721113725773,9.655,3415.2,3414.5,2.92868]
[1721113725978,9.655,3415.2,3414.4,2.92876]
[1721113726721,9.655,3415.2,3414.5,2.92867]
[1721113726891,9.655,3415.2,3414.1,0.64712813]
[1721113726892,9.655,3415.2,3414.3,2.92885]
[1721113727087,9.655,3415.2,3414.4,3.35759781]
[1721113727293,9.655,3415.2,3414.4,0.35759781]
[1721113727497,9.655,3415.2,3414.1,3.0]
[1721113727692,9.655,3415.2,3414.2,3.47887]
[1721113727884,9.655,3415.2,3414.3,5.92885]
[1721113728980,9.655,3415.2,3414.3,3.0]
[1721113729179,9.655,3415.2,3414.2,3.0]
[1721113729492,2.4649,3414.8,3413.4,2.92961]
[1721113729795,3.035,3414.5,3413.3,2.92968]
[1721113729992,3.035,3414.5,3413.2,2.92979]
[1721113730217,3.035,3414.5,3413.3,0.292979]
[1721113730729,3.035,3414.5,3413.5,2.92954]
[1721113730893,3.035,3414.5,3412.8,0.469319]
[1721113730894,2.3315,3414.4,3412.8,0.469319]
[1721113731097,2.3315,3413.8,3412.3,2.93056]
[1721113731301,2.3315,3413.8,3412.4,2.93042]
[1721113731526,3.035,3413.4,3412.5,2.93038]
[1721113731685,3.035,3413.4,3412.4,2.93047]
[1721113731883,3.035,3413.4,3411.4,2.3367]
[1721113731884,3.035,3413.4,3411.9,2.93083]
[1721113732082,3.035,3413.0,3412.0,0.293083]
[1721113732282,3.035,3413.0,3411.5,2.93125]
[1721113732283,2.4695,3412.9,3411.5,2.93125]
[1721113732521,2.4695,3412.9,3411.7,2.931]
[1721113732823,2.4695,3412.9,3412.0,2.93083]
[1721113733213,2.4695,3412.9,3411.4,2.93]
[1721113733214,2.4695,3412.9,3412.4,2.93047]
[1721113733417,2.4695,3412.9,3412.1,2.93072]
[1721113733729,2.4695,3412.9,3412.1,3.223792]
[1721113733914,2.4695,3412.9,3412.1,0.293072]
[1721113734422,2.4695,3412.9,3412.3,2.93054]
[1721113734729,2.4695,3412.9,3412.4,3.0]
[1721113735089,2.4695,3412.9,3412.5,2.93037]
[1721113735425,2.4695,3412.9,3412.6,3.0]
[1721113735630,2.4695,3412.9,3412.4,3.0]
[1721113735804,2.4695,3412.9,3412.0,3.0]
[1721113736012,2.4695,3412.9,3412.1,0.5931]
[1721113736202,2.4695,3412.9,3411.9,3.0]
[1721113736433,2.4695,3412.9,3411.4,2.93]
[1721113736434,3.035,3412.7,3411.4,2.93]
[1721113736588,3.035,3412.7,3411.6,2.93109]
[1721113736788,3.035,3412.7,3411.4,2.93]
[1721113736789,2.4695,3412.9,3412.0,2.93076]
[1721113736997,2.4695,3412.9,3411.4,2.93]
[1721113737220,0.55045,3412.8,3411.7,2.93107]
[1721113737531,2.4695,3412.9,3411.7,2.93107]
[1721113737694,2.4695,3412.9,3411.8,5.93096]
[1721113738122,2.4695,3412.9,3411.9,2.93091]
[1721113738327,2.4695,3412.9,3412.0,5.93082]
[1721113738629,2.4695,3412.9,3412.1,1.186173]
[1721113738824,2.4695,3412.9,3412.0,5.9308]
[1721113740649,2.4695,3412.9,3412.4,2.93047]
[1721113740946,2.4695,3412.9,3412.5,3.0]
[1721113741602,2.4695,3412.9,3412.2,3.0]
[1721113741801,2.4695,3412.9,3410.9,1.83081943]
[1721113741802,2.4695,3412.9,3411.2,3.0]
[1721113742004,2.4695,3412.9,3411.7,2.93108]
[1721113742201,2.4695,3412.9,3411.8,0.670533]
[1721113742456,3.035,3412.7,3411.6,3.0]
[1721113743203,2.4452,3412.6,3411.5,6.22426]
[1721113743437,2.4452,3412.6,3411.5,3.22426]
[1721113743642,2.4452,3412.6,3411.7,2.93106]
[1721113743851,2.4452,3412.6,3412.0,2.93083]
[1721113744154,2.4452,3412.6,3411.8,5.93098]
[1721113744155,2.4452,3412.6,3412.1,6.816921]
[1721113744356,2.3073,3413.2,3412.4,2.93048]
[1721113744540,2.3073,3413.2,3412.7,2.93022]
[1721113744848,2.3073,3413.2,3412.8,3.0]
[1721113745204,2.3073,3413.2,3412.7,5.93022]
[1721113745476,7.32,3413.3,3413.2,2.9298]
[1721113745601,7.32,3414.2,3413.8,2.92928]
[1721113745801,7.32,3414.2,3413.2,3.0]
[1721113745802,2.3536,3414.4,3413.9,2.92917]
[1721113746107,2.3536,3414.4,3414.0,3.0]
[1721113746419,2.3536,3414.4,3414.0,5.92908]
[1721113746620,2.3536,3414.4,3414.1,0.885836]
[1721113746818,2.3536,3414.4,3413.7,3.0]
[1721113747020,2.3536,3414.4,3413.8,2.92926]
[1721113747223,2.3536,3414.4,3413.9,3.0]
[1721113747653,2.3536,3414.4,3413.8,5.92927]
[1721113747955,2.3536,3414.4,3413.9,0.592927]
[1721113748160,2.3536,3414.4,3413.9,3.522097]
[1721113748360,2.3536,3414.4,3414.0,3.0]
[1721113748569,2.3536,3414.4,3413.8,3.0]
[1721113748722,2.3536,3414.4,3413.3,2.92971]
[1721113748723,2.3536,3414.4,3413.6,2.92944]
[1721113748919,2.3536,3414.4,3413.7,3.0]
[1721113749118,3.69567802,3414.4,3413.5,3.0]
[1721113749339,2.3536,3414.4,3413.2,5.92979]
[1721113749564,2.3536,3414.4,3413.3,0.55]
[1721113749724,2.3536,3414.4,3413.8,2.92927]
[1721113749920,2.3536,3414.4,3413.9,3.0]
[1721113751667,2.3536,3414.4,3412.8,0.94106]
[1721113751668,2.3536,3414.4,3413.3,3.0]
[1721113751824,2.3536,3414.4,3413.4,0.3]
[1721113752139,2.3536,3414.4,3413.5,2.92948]
[1721113752347,2.3536,3414.4,3412.7,3.0]
[1721113752348,2.4555,3414.2,3412.7,2.9302]
[1721113752545,2.4555,3414.2,3411.9,2.93088]
[1721113752546,2.4555,3414.1,3412.6,2.9303]
[1721113752745,2.4555,3413.9,3412.6,3.22333]
[1721113753071,2.4555,3413.9,3413.0,2.92995]
[1721113753730,2.4555,3413.9,3413.1,3.0]
[1721113754226,2.4555,3413.9,3413.3,2.92967]
[1721113754431,2.4555,3413.9,3413.4,3.0]
[1721113754631,2.4555,3413.9,3413.5,0.885938]
[1721113755223,2.4971,3414.5,3413.5,0.885938]
[1721113755440,2.4971,3414.5,3413.5,3.815478]
[1721113755651,2.4971,3414.5,3413.6,5.92944]
[1721113755979,2.4971,3414.5,3413.8,2.92928]
[1721113756273,2.4971,3414.5,3413.9,0.640872]
[1721113756452,2.4971,3414.5,3413.9,3.640872]
[1721113757066,2.4971,3414.5,3414.0,3.0]
[1721113757268,2.4971,3414.5,3413.8,3.0]
[1721113757481,2.4971,3414.5,3413.6,3.0]
[1721113757766,2.4971,3414.5,3413.7,0.592952]
[1721113758438,2.4971,3414.5,3413.9,2.92919]
[1721113758651,2.4971,3414.5,3414.0,3.0]
[1721113758854,2.4971,3414.5,3413.8,0.55]
[1721113759164,7.32,3414.6,3414.2,2.92893]
[1721113759377,9.8171,3415.0,3414.3,3.585796]
[1721113759946,9.8171,3415.0,3414.4,3.0]
[1721113760145,9.8171,3415.0,3414.3,0.585796]
[1721113760552,9.8171,3415.0,3414.3,3.585796]
[1721113760873,7.32,3415.0,3414.3,3.585796]
[1721113761076,7.32,3415.0,3413.8,0.55]
[1721113761077,7.32,3415.0,3414.9,2.92834]
[1721113761390,2.3772,3415.5,3414.9,2.92834]
[1721113761599,2.3772,3415.5,3415.0,3.0]
[1721113762291,7.32,3415.6,3415.0,3.0]
[1721113762446,7.32,3415.6,3415.4,2.92791]
[1721113762651,7.32,3415.6,3415.5,3.0]
[1721113763345,2.2587,3416.0,3415.5,3.885596]
[1721113763559,2.2587,3416.0,3415.9,2.92748]
[1721113763758,7.32,3416.2,3415.9,5.92748]
[1721113763970,7.32,3416.2,3416.0,3.0]
[1721113764701,2.3339,3416.5,3416.0,3.0]
[1721113764702,2.3339,3416.5,3416.0,6.4774]
[1721113764924,2.3339,3416.5,3416.0,7.12514]
[1721113765203,2.3339,3416.5,3416.0,6.57514]
[1721113766002,2.3339,3416.5,3416.0,3.0]
[1721113766190,2.3339,3416.5,3415.8,3.0]
[1721113766498,7.32,3416.8,3414.5,2.94363]
[1721113766499,2.3169,3416.0,3414.5,2.94363]
[1721113766697,2.3169,3416.0,3414.5,0.015]
[1721113766898,0.23867786,3415.9,3414.5,2.94368]
[1721113767349,0.23867786,3415.9,3414.9,2.92832]
[1721113767895,2.3169,3416.0,3415.2,2.92805]
[1721113768104,2.3169,3416.0,3415.3,2.92798]
[1721113768259,2.3169,3416.0,3415.7,2.92765]
[1721113768459,2.3169,3416.0,3415.5,2.92781]
[1721113768857,2.3169,3416.0,3415.6,3.0]
[1721113769191,2.3169,3416.0,3415.6,3.885579]
[1721113769392,2.3169,3416.0,3415.4,3.0]
[1721113769767,2.3169,3416.0,3415.5,2.92782]
[1721113769959,2.3169,3416.0,3415.6,3.0]
[1721113770161,2.3169,3416.0,3415.5,2.9278]
[1721113770359,2.3169,3416.0,3415.6,3.0]
[1721113770688,2.3169,3416.0,3415.6,1.185587]
[1721113770855,0.0698786,3416.1,3415.5,5.9278]
[1721113770856,0.0698786,3416.1,3415.7,2.92765]
[1721113771059,0.0698786,3416.1,3415.8,3.0]
[1721113772000,0.0698786,3416.1,3415.8,5.92755]
[1721113772685,0.0698786,3416.1,3416.0,2.9274]
[1721113772889,0.0698786,3416.1,3416.0,3.0]
[1721113773271,0.0698786,3416.1,3415.2,2.92803]
[1721113773474,0.0698786,3416.1,3415.6,2.92767]
[1721113773709,0.0698786,3416.1,3415.7,3.0]
[1721113774201,0.0698786,3416.1,3416.0,2.9274]
[1721113774412,0.0698786,3416.1,3416.0,5.9274]
[1721113774711,0.0698786,3416.1,3416.0,3.55]
[1721113774864,0.0698786,3416.1,3416.0,3.0]
[1721113775061,0.0698786,3416.1,3416.0,0.3]
[1721113775490,0.0698786,3416.1,3416.0,3.7774]
[1721113775689,0.0698786,3416.1,3416.0,6.7774]
[1721113776088,0.0698786,3416.1,3416.0,3.3]
[1721113776466,0.0698786,3416.1,3416.0,3.0]
[1721113777096,0.0698786,3416.1,3415.9,3.0]
[1721113777503,0.0698786,3416.1,3415.7,3.0]
[1721113777900,0.0698786,3416.1,3415.5,3.0]
[1721113778107,0.0698786,3416.1,3415.5,5.92782]
[1721113778313,0.0698786,3416.1,3415.6,0.6220623]
[1721113779198,0.0698786,3416.1,3415.3,3.292803]
[1721113779199,2.3627,3416.0,3415.3,3.292803]
[1721113779379,2.3627,3416.0,3415.3,0.292803]
[1721113779580,2.3627,3416.0,3415.1,3.0]
[1721113780106,2.3627,3416.0,3415.1,2.92815]
[1721113780267,2.3627,3416.0,3415.1,2.9281]
[1721113780467,2.3627,3416.0,3415.2,3.0]
[1721113780866,2.3627,3416.0,3415.3,2.92793]
[1721113781072,2.3627,3416.0,3415.4,3.885603]
[1721113781310,2.3627,3416.0,3415.4,0.885603]
[1721113781670,2.3627,3416.0,3415.4,6.813493]
[1721113781871,2.3627,3416.0,3415.5,2.92782]
[1721113782071,2.3627,3416.0,3415.6,3.0]
[1721113782372,2.3627,3416.0,3415.6,3.6813423]
[1721113783869,2.3627,3416.0,3415.6,0.6813423]